bitfinex/quotes_SOLUSD_20240708
["timestamp","ask_amount","ask_price","bid_price","bid_amount"]
[1720425458444,17.17,132.94,132.89,21.6588]
[1720425458645,17.17,132.93,132.89,21.6588]
[1720425458853,17.17,132.93,132.89,38.8288]
[1720425459036,17.17,132.93,132.89,21.6588]
[1720425459629,115.5784,132.98,132.89,21.6588]
[1720425459831,17.17,132.93,132.89,21.6588]
[1720425460928,17.17,132.92,132.89,21.6588]
[1720425461554,100.0,132.96,132.89,21.6588]
[1720425461852,138.2084,132.98,132.89,21.6588]
[1720425462050,138.2084,132.98,132.89,38.8288]
[1720425462348,17.17,132.93,132.89,38.8288]
[1720425462555,17.17,132.93,132.89,21.6588]
[1720425462953,17.17,132.92,132.89,21.6588]
[1720425463532,100.0,132.96,132.89,21.6588]
[1720425463756,17.17,132.93,132.89,21.6588]
[1720425464344,17.17,132.92,132.89,21.6588]
[1720425464539,17.17,132.91,132.89,21.6588]
[1720425465062,17.17,132.92,132.89,21.6588]
[1720425466153,17.17,132.91,132.89,21.6588]
[1720425467041,122.63,132.96,132.89,21.6588]
[1720425467235,17.17,132.91,132.89,21.6588]
[1720425468437,17.17,132.91,132.85,21.5827]
[1720425468637,17.17,132.91,132.85,6.0577]
[1720425468638,17.17,132.87,132.85,6.0577]
[1720425469246,116.6649,132.93,132.85,6.0577]
[1720425469533,17.17,132.88,132.85,6.0577]
[1720425469835,116.6649,132.93,132.85,6.0577]
[1720425470145,185.3449,132.93,132.85,6.0577]
[1720425470352,17.17,132.88,132.85,6.0577]
[1720425472961,116.6649,132.93,132.85,6.0577]
[1720425473163,17.17,132.88,132.85,6.0577]
[1720425474439,17.17,132.88,132.82,21.9746]
[1720425474841,17.17,132.88,132.83,17.17]
[1720425475566,100.0,132.91,132.82,21.9746]
[1720425475767,17.17,132.88,132.83,17.17]
[1720425476153,17.17,132.87,132.83,17.17]
[1720425476359,100.0,132.91,132.83,17.17]
[1720425476559,17.17,132.87,132.83,17.17]
[1720425476743,17.17,132.87,132.82,22.1446]
[1720425476950,17.17,132.87,132.83,0.17]
[1720425477263,17.17,132.88,132.83,17.34]
[1720425477669,17.17,132.87,132.83,17.34]
[1720425477848,16.6649,132.93,132.83,17.34]
[1720425478056,15.9015,132.96,132.86,17.17]
[1720425478260,15.9015,132.96,132.87,0.17]
[1720425478470,17.17,132.91,132.87,0.17]
[1720425479147,17.17,132.9,132.87,0.17]
[1720425479968,100.0,132.95,132.87,0.17]
[1720425480152,17.17,132.91,132.87,0.17]
[1720425480785,100.0,132.95,132.87,0.17]
[1720425480956,17.17,132.91,132.87,39.251]
[1720425481163,15.7015,132.96,132.88,17.17]
[1720425481469,17.17,132.92,132.88,17.17]
[1720425482659,17.17,132.93,132.89,17.17]
[1720425482869,17.17,132.93,132.87,22.081]
[1720425483090,17.17,132.93,132.88,17.17]
[1720425483296,17.17,132.93,132.89,17.34]
[1720425483468,68.68,133.0,132.89,0.17]
[1720425483784,113.50189233,133.01,132.95,17.17]
[1720425483785,17.17,132.99,132.95,17.17]
[1720425483950,17.17,133.0,132.95,17.17]
[1720425484159,100.0,133.06,132.97,17.17]
[1720425484371,17.17,133.02,132.97,17.17]
[1720425485292,122.63,133.06,132.97,17.17]
[1720425485454,8.52353189,133.07,132.97,17.17]
[1720425485645,121.875,133.08,132.98,17.34]
[1720425485850,17.17,133.03,132.98,17.17]
[1720425486263,68.68,133.07,132.98,17.17]
[1720425486466,17.17,133.03,132.98,32.895]
[1720425486786,68.68,133.07,132.98,15.725]
[1720425486787,34.29,133.07,132.98,15.725]
[1720425487474,100.0,133.06,132.98,15.725]
[1720425488352,34.29,133.07,132.98,15.725]
[1720425488551,34.29,133.07,132.99,6.5794]
[1720425488758,15.8063,133.08,132.99,6.5794]
[1720425490272,115.8063,133.08,132.99,6.5794]
[1720425490680,100.0,133.09,133.0,15.6295]
[1720425491596,134.29,133.1,133.0,15.6295]
[1720425491880,100.0,133.08,133.0,15.6295]
[1720425492598,134.29,133.08,133.0,15.4595]
[1720425493157,34.29,133.08,133.0,15.4595]
[1720425493362,34.29,133.08,133.01,0.17]
[1720425493589,156.92,133.08,133.0,15.4595]
[1720425493795,100.0,133.06,132.99,6.5794]
[1720425494169,34.29,133.06,132.99,6.5794]
[1720425494477,100.0,133.08,132.99,6.5794]
[1720425494478,134.29,133.08,132.99,6.5794]
[1720425494993,15.3358,133.09,132.99,6.5794]
[1720425495198,15.3358,133.09,133.0,0.17]
[1720425495759,115.3358,133.09,132.99,6.5794]
[1720425496291,34.29,133.08,133.0,0.17]
[1720425496692,34.29,133.08,133.0,0.62571874]
[1720425498098,34.29,133.08,133.0,0.17]
[1720425499574,115.3358,133.09,133.0,0.17]
[1720425499575,34.29,133.09,133.0,0.17]
[1720425499789,34.29,133.09,133.01,15.182]
[1720425502096,34.29,133.1,133.01,15.182]
[1720425507899,116.1047,133.13,133.02,6.65]
[1720425508090,34.29,133.14,133.03,0.17]
[1720425508292,34.29,133.14,133.04,15.2285]
[1720425508491,34.29,133.14,133.05,0.17]
[1720425508704,15.0988,133.16,133.07,6.65]
[1720425508887,17.13,133.11,133.07,6.65]
[1720425511493,100.0,133.15,133.07,6.65]
[1720425511694,17.13,133.11,133.07,6.65]
[1720425512705,100.0,133.15,133.07,6.65]
[1720425513111,15.0988,133.16,133.07,6.65]
[1720425513295,17.13,133.11,133.07,6.65]
[1720425513692,17.13,133.11,133.07,23.78]
[1720425513892,17.13,133.11,133.07,6.65]
[1720425514104,17.13,133.1,133.07,6.65]
[1720425515513,17.13,133.14,133.07,6.65]
[1720425515716,17.13,133.11,133.07,6.65]
[1720425516090,115.0988,133.16,133.07,6.65]
[1720425516315,17.13,133.11,133.07,6.65]
[1720425517720,17.13,133.11,133.07,23.78]
[1720425518531,115.0988,133.16,133.08,17.13]
[1720425518532,15.0988,133.16,133.08,17.13]
[1720425518811,17.13,133.13,133.09,17.13]
[1720425519421,101.400002,133.18,133.07,6.82]
[1720425519627,17.13,133.13,133.08,17.3]
[1720425519812,17.13,133.13,133.09,17.13]
[1720425520008,101.400002,133.18,133.09,17.13]
[1720425520332,101.400002,133.18,133.09,32.855]
[1720425520545,17.13,133.14,133.09,32.855]
[1720425520747,17.13,133.14,133.1,0.17]
[1720425521048,1.400002,133.18,133.1,0.17]
[1720425521213,17.13,133.14,133.1,0.17]
[1720425521406,1.400002,133.18,133.1,0.17]
[1720425521609,17.13,133.14,133.1,17.3]
[1720425521810,21.400002,133.18,133.1,17.3]
[1720425521811,1.400002,133.18,133.1,17.3]
[1720425522016,17.13,133.15,133.1,0.17]
[1720425522216,1.400002,133.18,133.1,0.17]
[1720425522507,1.400002,133.18,133.11,6.4073]
[1720425522710,17.13,133.16,133.12,0.17]
[1720425522910,17.13,133.16,133.12,17.3]
[1720425523125,17.13,133.16,133.12,0.17]
[1720425524248,17.13,133.15,133.11,6.4073]
[1720425524938,17.13,133.14,133.11,6.4073]
[1720425525110,101.400002,133.18,133.11,6.4073]
[1720425525318,17.13,133.15,133.11,6.4073]
[1720425527141,17.13,133.12,133.09,15.725]
[1720425527722,100.0,133.16,133.09,15.725]
[1720425527920,117.346602,133.18,133.09,15.725]
[1720425528121,17.13,133.12,133.09,15.725]
[1720425528929,17.13,133.11,133.09,15.725]
[1720425529637,17.13,133.14,133.07,6.4256]
[1720425529836,17.13,133.1,133.07,6.4256]
[1720425530030,117.13,133.14,133.07,6.4256]
[1720425530231,17.13,133.11,133.07,6.4256]
[1720425530540,68.52,133.14,133.07,6.4256]
[1720425530841,68.52,133.14,133.08,0.17]
[1720425531014,100.0,133.16,133.08,0.17]
[1720425531218,17.13,133.11,133.08,0.17]
[1720425532450,117.346602,133.18,133.08,0.17]
[1720425532743,20.0,133.17,133.08,0.17]
[1720425533115,17.13,133.12,133.08,0.17]
[1720425534025,17.13,133.11,133.08,0.17]
[1720425534427,20.0,133.17,133.08,0.17]
[1720425534626,17.13,133.11,133.08,0.17]
[1720425534930,17.13,133.13,133.08,17.3]
[1720425535134,17.346602,133.18,133.09,17.13]
[1720425535317,17.346602,133.18,133.1,0.17]
[1720425535520,17.13,133.14,133.1,0.17]
[1720425537033,1.400002,133.18,133.11,15.3171]
[1720425537232,17.13,133.16,133.12,0.17]
[1720425537947,1.400002,133.18,133.12,0.17]
[1720425538152,1.400002,133.18,133.12,6.7718]
[1720425538330,17.13,133.14,133.12,6.6018]
[1720425539128,1.400002,133.18,133.12,6.6018]
[1720425539343,17.13,133.14,133.12,6.6018]
[1720425539736,1.400002,133.18,133.12,6.6018]
[1720425540051,17.13,133.14,133.12,6.6018]
[1720425540229,17.13,133.14,133.11,15.3171]
[1720425540625,1.400002,133.18,133.11,15.3171]
[1720425540836,17.13,133.14,133.11,15.3171]
[1720425541026,17.13,133.13,133.11,15.3171]
[1720425541350,17.13,133.12,133.07,15.725]
[1720425541538,17.13,133.11,133.07,15.725]
[1720425542622,100.0,133.13,133.03,15.725]
[1720425542827,17.13,133.06,133.03,15.725]
[1720425543043,17.13,133.05,133.03,15.725]
[1720425543254,17.13,133.04,133.03,15.725]
[1720425543463,17.13,133.06,133.03,15.725]
[1720425544277,100.0,133.11,133.03,15.725]
[1720425544432,17.13,133.06,133.03,15.725]
[1720425544636,17.13,133.05,133.03,15.725]
[1720425545560,17.13,133.04,133.0,17.13]
[1720425545872,17.13,133.04,133.01,0.17]
[1720425546468,100.0,133.11,133.01,0.17]
[1720425546638,17.13,133.07,133.02,17.13]
[1720425546841,17.13,133.07,133.03,0.17]
[1720425547040,17.13,133.06,133.03,0.17]
[1720425547253,17.13,133.06,133.01,17.13]
[1720425547557,17.13,133.06,133.02,0.17]
[1720425547760,17.13,133.05,132.99,21.4023]
[1720425547947,17.13,133.05,133.01,17.13]
[1720425548652,17.13,133.06,133.01,17.13]
[1720425548856,17.13,133.05,133.01,17.13]
[1720425549153,17.13,133.05,133.0,17.3]
[1720425550760,17.13,133.05,133.0,0.17]
[1720425550948,17.13,133.03,133.0,0.17]
[1720425551959,17.13,133.02,133.0,0.17]
[1720425553759,17.13,133.02,132.99,21.4023]
[1720425553959,168.52,133.07,132.99,21.4023]
[1720425553960,115.094,133.07,132.99,21.4023]
[1720425554293,17.13,133.02,132.99,21.4023]
[1720425558959,17.13,133.02,132.94,32.28094794]
[1720425559163,183.614,133.07,132.97,17.13]
[1720425559164,17.13,133.01,132.97,17.13]
[1720425559367,17.13,133.01,132.95,42.0052]
[1720425559753,17.13,133.01,132.96,17.13]
[1720425559975,17.13,133.01,132.97,0.17]
[1720425561183,100.0,133.05,132.97,0.17]
[1720425561752,17.13,133.01,132.97,0.17]
[1720425562877,100.0,133.02,132.95,21.8352]
[1720425563079,17.13,132.98,132.95,21.8352]
[1720425565773,100.0,133.05,132.96,0.17]
[1720425565969,17.13,133.0,132.96,0.17]
[1720425566570,100.0,133.05,132.96,0.17]
[1720425566789,17.13,133.0,132.96,0.17]
[1720425567979,17.13,132.99,132.96,0.17]
[1720425568553,17.13,132.99,132.95,21.8352]
[1720425569169,17.13,132.98,132.95,21.8352]
[1720425569366,100.0,133.03,132.95,21.8352]
[1720425569676,17.13,132.98,132.95,21.8352]
[1720425570581,17.13,132.99,132.95,21.8352]
[1720425571287,17.13,133.01,132.96,17.3]
[1720425571492,17.13,133.01,132.97,17.13]
[1720425571676,17.13,133.0,132.96,17.3]
[1720425572099,17.13,133.0,132.96,0.17]
[1720425573190,17.13,133.0,132.96,17.3]
[1720425573385,17.13,133.0,132.96,0.17]
[1720425573592,20.0,133.04,132.95,21.8352]
[1720425573777,17.13,133.0,132.95,38.9652]
[1720425574291,17.13,133.0,132.96,0.17]
[1720425575200,17.13,132.99,132.95,21.8352]
[1720425576175,17.13,132.99,132.95,38.9652]
[1720425577079,20.0,133.04,132.95,38.9652]
[1720425577388,17.13,133.01,132.96,17.3]
[1720425578200,17.13,133.0,132.96,17.3]
[1720425578493,20.0,133.04,132.96,17.3]
[1720425578798,121.4604,133.07,132.98,17.13]
[1720425579095,17.13,133.02,132.98,17.13]
[1720425579308,17.13,133.02,132.97,17.13]
[1720425579507,17.13,133.02,132.98,0.17]
[1720425579675,189.9804,133.07,132.97,17.13]
[1720425579676,17.13,133.01,132.97,17.13]
[1720425580186,189.9804,133.07,132.97,17.13]
[1720425580493,17.13,133.02,132.98,0.17]
[1720425580882,21.4604,133.07,132.98,0.17]
[1720425581081,21.4604,133.07,132.99,17.13]
[1720425581082,17.13,133.03,132.99,17.13]
[1720425581291,17.13,133.03,132.98,17.3]
[1720425582296,17.13,133.03,132.98,0.17]
[1720425582500,17.13,133.03,132.98,17.3]
[1720425583500,100.0,133.05,132.98,0.17]
[1720425583799,100.0,133.05,132.95,21.8352]
[1720425583800,17.13,133.01,132.95,21.8352]
[1720425584099,17.13,133.01,132.96,0.17]
[1720425584289,17.13,132.99,132.96,0.17]
[1720425585589,17.13,133.0,132.96,17.3]
[1720425586489,17.13,133.0,132.96,0.17]
[1720425586708,17.13,133.0,132.95,38.9652]
[1720425587385,100.0,133.03,132.95,38.9652]
[1720425587583,17.13,133.0,132.95,38.9652]
[1720425587776,17.13,133.0,132.96,0.17]
[1720425587978,17.13,133.0,132.95,21.8352]
[1720425588200,17.13,132.99,132.95,38.9652]
[1720425588399,17.13,132.99,132.96,0.17]
[1720425588602,17.13,132.99,132.95,38.9652]
[1720425588603,17.13,132.99,132.95,21.8352]
[1720425589202,17.13,133.0,132.95,38.9652]
[1720425589393,17.13,133.0,132.95,21.8352]
[1720425589592,17.13,133.0,132.95,38.9652]
[1720425590591,17.13,133.0,132.95,21.8352]
[1720425590791,17.13,132.99,132.95,21.8352]
[1720425591891,100.0,133.03,132.95,21.8352]
[1720425592094,17.13,132.99,132.95,21.8352]
[1720425593297,17.13,133.0,132.96,0.17]
[1720425594498,17.13,132.99,132.95,21.8352]
[1720425596300,17.13,132.98,132.95,21.8352]
[1720425596492,17.13,132.99,132.95,21.8352]
[1720425597083,100.0,133.05,132.95,38.9652]
[1720425597309,17.13,133.0,132.96,0.17]
[1720425597693,121.4604,133.07,132.97,17.13]
[1720425597895,17.13,133.02,132.98,0.17]
[1720425598107,17.13,133.01,132.98,0.17]
[1720425598294,189.9804,133.07,132.97,17.3]
[1720425598489,189.9804,133.07,132.97,0.17]
[1720425598490,17.13,133.01,132.97,0.17]
[1720425599205,17.13,133.02,132.97,17.3]
[1720425599418,189.9804,133.07,132.97,17.3]
[1720425599603,17.13,133.02,132.97,17.3]
[1720425600194,15.094,133.07,132.99,17.13]
[1720425600391,17.13,133.04,133.0,0.17]
[1720425600595,17.13,133.03,133.0,0.17]
[1720425601016,17.13,133.03,132.99,0.17]
[1720425602423,115.094,133.07,132.99,0.17]
[1720425602722,17.13,133.03,132.99,0.17]
[1720425603211,15.094,133.07,132.99,17.3]
[1720425603423,17.13,133.05,133.0,17.13]
[1720425603625,100.0,133.09,133.01,0.17]
[1720425603626,17.13,133.06,133.01,0.17]
[1720425603796,17.13,133.05,133.01,0.17]
[1720425604235,17.13,133.04,133.01,0.17]
[1720425604393,15.2198,133.06,132.97,21.7662]
[1720425605091,17.13,133.03,132.97,21.7662]
[1720425605298,17.13,133.03,132.99,17.13]
[1720425605720,100.0,133.09,132.97,21.7662]
[1720425605933,17.13,133.05,133.0,17.13]
[1720425606235,100.0,133.09,132.98,9.04646328]
[1720425606236,17.13,133.03,132.98,17.13]
[1720425606889,17.13,133.03,132.97,21.7662]
[1720425607108,17.13,133.03,132.98,17.13]
[1720425607427,100.0,133.09,132.99,17.3]
[1720425607608,17.13,133.04,132.99,17.3]
[1720425607794,17.13,133.07,132.97,21.7662]
[1720425607996,17.13,133.0,132.97,21.7662]
[1720425608213,15.4685,133.05,132.97,21.7662]
[1720425608404,15.4685,133.05,132.97,38.8962]
[1720425608719,17.13,133.03,132.98,17.13]
[1720425609097,17.13,133.02,132.97,21.7662]
[1720425609404,115.4685,133.05,132.97,21.7662]
[1720425609405,17.13,133.01,132.97,21.7662]
[1720425610216,115.4685,133.05,132.97,38.8962]
[1720425610517,17.13,133.02,132.98,0.17]
[1720425613636,17.13,133.02,132.97,21.7662]
[1720425613811,115.4685,133.05,132.93,5.9078875]
[1720425613812,17.13,132.99,132.96,0.17]
[1720425614364,17.13,132.99,132.94,20.0]
[1720425614548,17.13,132.99,132.94,37.13]
[1720425614722,17.13,132.98,132.94,20.0]
[1720425615257,17.13,132.95,132.9,21.9646]
[1720425615417,17.13,132.91,132.87,21.9756]
[1720425615723,100.0,132.98,132.88,17.13]
[1720425615921,100.0,132.96,132.88,17.13]
[1720425616120,22.0851,133.0,132.87,39.1056]
[1720425616121,100.0,132.98,132.87,39.1056]
[1720425616341,17.13,132.94,132.89,24.6548]
[1720425616557,17.13,132.94,132.9,17.13]
[1720425616869,100.0,132.98,132.89,17.13]
[1720425617014,17.13,132.93,132.89,17.13]
[1720425617214,17.13,132.93,132.88,17.13]
[1720425617538,113.0451,133.0,132.87,21.9756]
[1720425617539,100.0,132.96,132.87,21.9756]
[1720425617729,17.13,132.91,132.87,21.9756]
[1720425618144,17.13,132.9,132.87,21.9756]
[1720425619019,17.13,132.9,132.87,6.2506]
[1720425619452,17.13,132.88,132.84,15.725]
[1720425619632,17.13,132.88,132.84,32.855]
[1720425620021,17.13,132.88,132.84,15.725]
[1720425620644,17.13,132.86,132.83,6.0422]
[1720425621333,17.13,132.87,132.83,6.0422]
[1720425623239,17.13,132.86,132.83,6.0422]
[1720425623639,17.13,132.86,132.82,0.17]
[1720425623953,100.0,132.9,132.82,0.17]
[1720425624253,17.13,132.87,132.82,0.17]
[1720425624455,17.13,132.86,132.82,0.17]
[1720425625246,17.13,132.85,132.82,0.17]
[1720425626246,17.13,132.85,132.81,15.825]
[1720425626648,17.13,132.85,132.82,0.17]
[1720425627027,17.13,132.85,132.81,15.825]
[1720425627223,17.13,132.84,132.81,15.825]
[1720425627423,100.0,132.91,132.81,32.955]
[1720425627639,17.13,132.86,132.82,17.3]
[1720425627835,17.13,132.86,132.82,0.17]
[1720425628040,17.13,132.86,132.81,15.825]
[1720425628231,17.13,132.85,132.81,15.825]
[1720425628432,17.13,132.86,132.81,32.955]
[1720425628640,17.13,132.86,132.82,17.3]
[1720425628843,17.13,132.85,132.81,15.825]
[1720425629233,17.13,132.85,132.81,32.955]
[1720425629953,100.0,132.89,132.81,0.1]
[1720425629954,17.13,132.84,132.81,0.1]
[1720425630251,17.13,132.85,132.81,0.27]
[1720425630451,17.13,132.86,132.81,17.4]
[1720425630651,17.13,132.85,132.81,17.4]
[1720425631155,17.13,132.85,132.81,0.27]
[1720425631732,17.13,132.82,132.81,0.1]
[1720425634858,100.0,132.84,132.81,0.1]
[1720425635059,17.13,132.82,132.81,0.1]
[1720425635956,168.52,132.86,132.81,0.1]
[1720425636255,17.13,132.82,132.81,0.1]
[1720425637056,117.13,132.82,132.81,0.1]
[1720425637536,133.0829,132.82,132.81,0.1]
[1720425639262,133.0829,132.82,132.73,390.2]
[1720425639263,100.0,132.8,132.73,390.2]
[1720425639559,17.13,132.75,132.71,15.825]
[1720425639856,17.13,132.79,132.74,23.3252]
[1720425640165,17.13,132.79,132.74,6.1952]
[1720425640463,17.13,132.77,132.74,6.1952]
[1720425640960,15.9529,132.82,132.74,23.3252]
[1720425641143,17.13,132.8,132.75,17.3]
[1720425641537,17.13,132.79,132.75,0.17]
[1720425641942,100.0,132.83,132.75,0.17]
[1720425642147,17.13,132.78,132.75,0.17]
[1720425643049,17.13,132.79,132.75,0.17]
[1720425644240,121.9597,132.85,132.75,0.17]
[1720425644442,17.13,132.79,132.75,0.17]
[1720425644952,17.13,132.81,132.76,17.13]
[1720425645144,17.13,132.81,132.77,17.3]
[1720425645343,17.13,132.81,132.78,0.17]
[1720425645934,21.9597,132.85,132.77,16.3021]
[1720425645935,15.4104,132.85,132.77,16.3021]
[1720425646145,17.13,132.83,132.79,17.13]
[1720425646342,17.13,132.86,132.8,0.17]
[1720425646551,17.13,132.86,132.77,16.1321]
[1720425646882,17.13,132.8,132.77,16.1321]
[1720425647560,17.13,132.8,132.76,0.17]
[1720425647742,17.13,132.79,132.74,412.8542]
[1720425647942,17.13,132.79,132.74,429.9842]
[1720425648172,17.13,132.78,132.74,429.9842]
[1720425648874,17.13,132.78,132.75,0.17]
[1720425649071,17.13,132.78,132.74,412.8542]
[1720425650262,17.13,132.79,132.75,0.17]
[1720425650988,21.2041,132.83,132.75,17.3]
[1720425651158,16.2906,132.86,132.76,7.5321]
[1720425651358,16.2906,132.86,132.78,17.13]
[1720425651570,17.13,132.83,132.79,0.17]
[1720425651782,17.13,132.83,132.78,17.13]
[1720425652100,84.8106,132.86,132.79,0.17]
[1720425652277,17.13,132.83,132.79,0.17]
[1720425652657,17.13,132.82,132.79,0.17]
[1720425652959,16.2906,132.86,132.8,17.13]
[1720425653186,17.13,132.85,132.81,17.3]
[1720425653384,17.13,132.85,132.81,17.13]
[1720425654107,15.7724,132.89,132.82,17.3]
[1720425654262,17.13,132.87,132.82,17.3]
[1720425654777,15.7724,132.89,132.82,0.17]
[1720425655291,15.7724,132.89,132.8,13.7212]
[1720425655292,15.7724,132.89,132.81,0.17]
[1720425655862,116.0501,132.93,132.81,26.5229]
[1720425656160,50.4201,132.93,132.82,7.5285]
[1720425656357,50.4201,132.93,132.81,18.9936]
[1720425656358,50.4201,132.93,132.83,0.17]
[1720425656602,16.0501,132.93,132.83,0.17]
[1720425656767,16.0501,132.93,132.82,7.6987]
[1720425656768,50.4201,132.93,132.82,7.6987]
[1720425656968,16.0501,132.93,132.82,7.6987]
[1720425657197,50.4201,132.93,132.82,7.6987]
[1720425657797,50.4201,132.93,132.82,0.17]
[1720425657981,50.4201,132.93,132.82,20.17]
[1720425658183,100.0,132.92,132.82,20.17]
[1720425658694,16.0501,132.93,132.83,15.0402]
[1720425658987,16.0501,132.93,132.83,22.5684]
[1720425659176,16.0501,132.93,132.83,41.3892]
[1720425659903,16.0501,132.93,132.84,0.17]
[1720425660399,34.37,132.92,132.84,0.17]
[1720425660967,100.0,132.91,132.83,15.0402]
[1720425661192,34.37,132.9,132.83,15.0402]
[1720425661579,34.37,132.9,132.81,390.2]
[1720425662471,100.0,132.89,132.81,390.2]
[1720425663108,100.0,132.87,132.81,390.2]
[1720425663281,16.5871,132.88,132.81,390.2]
[1720425664681,34.37,132.89,132.81,390.2]
[1720425664881,15.6363,132.92,132.82,0.17]
[1720425665114,15.6363,132.95,132.82,20.17]
[1720425665278,15.6363,132.95,132.85,26.3445]
[1720425665477,15.6363,132.95,132.86,0.17]
[1720425665675,115.5897,133.0,132.87,13.7799]
[1720425665903,15.5897,133.0,132.88,35.6578]
[1720425666082,34.37,133.02,132.89,18.8113]
[1720425666281,34.37,133.02,132.9,27.6943]
[1720425666588,34.37,133.02,132.9,20.17]
[1720425666791,34.37,133.02,132.9,27.6944]
[1720425667303,100.0,133.01,132.9,20.17]
[1720425667890,34.37,133.02,132.9,20.17]
[1720425668087,15.5244,133.03,132.91,6.1916]
[1720425668402,49.8944,133.03,132.93,7.5227]
[1720425668580,34.37,133.05,132.94,16.1884]
[1720425668776,15.6249,133.07,132.95,6.4146]
[1720425668981,0.1,133.09,132.96,41.891]
[1720425669214,34.47,133.09,132.97,18.9708]
[1720425669382,34.37,133.07,132.97,0.17]
[1720425671898,100.0,133.06,132.97,0.63851259]
[1720425672082,54.37,133.05,132.97,0.17]
[1720425672282,54.37,133.05,132.96,0.17]
[1720425672907,34.37,133.05,132.96,0.17]
[1720425673208,134.37,133.08,132.96,20.17]
[1720425673408,22.61,133.07,132.95,6.2446]
[1720425673630,34.37,133.02,132.95,6.2446]
[1720425673790,0.1,133.09,132.98,7.5198]
[1720425673989,134.47,133.09,132.97,18.8001]
[1720425674200,20.0,133.08,132.97,18.8001]
[1720425674422,100.0,133.06,132.95,6.2446]
[1720425674590,100.0,133.06,132.95,13.7661]
[1720425675187,34.37,133.07,132.96,0.17]
[1720425675400,20.0,133.06,132.96,0.17]
[1720425676413,100.0,133.04,132.95,6.2446]
[1720425676918,34.37,133.05,132.95,6.2446]
[1720425678107,20.0,133.06,132.96,0.17]
[1720425678321,20.0,133.07,132.96,7.6909]
[1720425678720,0.1,133.09,132.98,22.5499]
[1720425679017,100.1,133.09,132.99,0.17]
[1720425679316,100.0,133.07,132.99,0.17]
[1720425679900,34.37,133.08,132.99,0.17]
[1720425680103,0.1,133.09,132.99,0.17]
[1720425680297,100.0,133.07,132.98,22.5499]